fUSD/lending_fUSD_20250514
["ID","MTS","AMOUNT","RATE_DAILY","PERIOD"]
[361056706,1747222245256,-400.0,0.00010987,2]
[361056707,1747222245268,-400.0,0.00010987,2]
[361056708,1747222245278,-400.0,0.00010987,2]
[361056709,1747222245290,-2512.1,0.00010987,2]
[361056710,1747222245299,-400.0,0.00010987,2]
[361056711,1747222245309,-400.0,0.00010987,2]
[361056712,1747222245319,-400.0,0.00010987,2]
[361056713,1747222245330,-400.0,0.00010987,2]
[361056714,1747222245339,-798.24,0.00010987,2]
[361056715,1747222245350,-2670.41,0.00010987,2]
[361056716,1747222245359,-400.0,0.00010987,2]
[361056717,1747222245368,-1335.58,0.00010987,2]
[361056718,1747222245377,-749.42,0.00010987,2]
[361056719,1747222245386,-400.0,0.00010987,2]
[361056720,1747222245395,-563.05,0.00010987,2]
[361056721,1747222245404,-1000.0,0.00010987,2]
[361056722,1747222245414,-400.0,0.00010987,2]
[361056723,1747222245423,-1133.12,0.00010987,2]
[361056724,1747222245432,-400.0,0.00010987,2]
[361056725,1747222245441,-1174.04,0.00010987,2]
[361056726,1747222245451,-400.0,0.00010987,2]
[361056727,1747222245461,-400.0,0.00010987,2]
[361056728,1747222245473,-400.0,0.00010987,2]
[361056729,1747222245483,-400.0,0.00010987,2]
[361056730,1747222245493,-400.0,0.00010987,2]
[361056731,1747222245503,-543.15,0.00010987,2]
[361056732,1747222245513,-400.0,0.00010987,2]
[361056733,1747222245528,-400.0,0.00010987,2]
[361056734,1747222245539,-400.0,0.00010987,2]
[361056735,1747222245549,-400.0,0.00010987,2]
[361056736,1747222245559,-400.0,0.00010988,2]
[361056737,1747222245569,-400.0,0.00010988,2]
[361056738,1747222245578,-1082.25,0.00010988,2]
[361056739,1747222245587,-400.0,0.00010988,2]
[361056740,1747222245599,-400.0,0.00010988,2]
[361056741,1747222245609,-400.0,0.00010988,2]
[361056742,1747222245619,-400.0,0.00010988,2]
[361056743,1747222245629,-470.64,0.00010988,2]
[361056744,1747222245638,-949.63,0.00010988,2]
[361056745,1747222245647,-417.49,0.00010988,2]
[361056746,1747222245657,-400.0,0.00010988,2]
[361056747,1747222245667,-400.0,0.00010988,2]
[361056748,1747222245676,-400.0,0.00010988,2]
[361056749,1747222245685,-400.0,0.00010988,2]
[361056750,1747222245695,-400.0,0.00010988,2]
[361056751,1747222245704,-400.0,0.00010988,2]
[361056752,1747222245713,-400.0,0.00010988,2]
[361056753,1747222245723,-400.0,0.00010988,2]
[361056754,1747222245734,-400.0,0.00010988,2]
[361056755,1747222245743,-333.33065279,0.00010988,2]
[361056756,1747222245752,-400.0,0.00010988,2]
[361056757,1747222245762,-400.0,0.00010988,2]
[361056758,1747222245772,-422.46793912,0.00010988,2]
[361056759,1747222245782,-400.0,0.00010988,2]
[361056760,1747222245791,-400.0,0.00010988,2]
[361056761,1747222245801,-400.0,0.00010988,2]
[361056762,1747222245811,-400.0,0.00010988,2]
[361056763,1747222245820,-400.0,0.00010988,2]
[361056764,1747222245830,-400.0,0.00010988,2]
[361056765,1747222245839,-400.0,0.00010988,2]
[361056766,1747222245848,-400.0,0.00010988,2]
[361056767,1747222245857,-400.0,0.00010988,2]
[361056769,1747222245867,-400.0,0.00010988,2]
[361056770,1747222245876,-400.0,0.00010988,2]
[361056771,1747222245886,-372.47515691,0.00010988,2]
[361056772,1747222245896,-400.0,0.00010988,2]
[361056773,1747222245905,-228.66257092,0.00010988,2]
[361056774,1747222245915,-400.0,0.00010988,2]
[361056775,1747222245924,-712.68,0.00010988,2]
[361056776,1747222245934,-456.18,0.00010988,2]
[361056777,1747222245943,-400.0,0.00010988,2]
[361056778,1747222245953,-400.0,0.00010988,2]
[361056779,1747222245962,-400.0,0.00010988,2]
[361056780,1747222245972,-400.0,0.00010988,2]
[361056781,1747222245983,-626.68,0.00010988,2]
[361056782,1747222245992,-400.0,0.00010988,2]
[361056783,1747222246002,-591.32,0.00010988,2]
[361056784,1747222246011,-400.0,0.00010988,2]
[361056785,1747222246021,-400.0,0.00010988,2]
[361056786,1747222246030,-400.0,0.00010988,2]
[361056787,1747222246039,-400.0,0.00010988,2]
[361056788,1747222246049,-400.0,0.00010988,2]
[361056789,1747222246059,-400.0,0.00010988,2]
[361056790,1747222246068,-400.0,0.00010988,2]
[361056791,1747222246079,-400.0,0.00010988,2]
[361056792,1747222246088,-985.62,0.00010988,2]
[361056793,1747222246098,-401.7,0.00010988,2]
[361056794,1747222246107,-475.63,0.00010988,2]
[361056795,1747222246118,-509.91,0.00010988,2]
[361056796,1747222246128,-1366.04,0.00010988,2]
[361056797,1747222246138,-684.83,0.00010988,2]
[361056798,1747222246147,-1264.09,0.00010988,2]
[361056799,1747222246157,-818.36,0.00010988,2]
[361056800,1747222246168,-400.0,0.00010988,2]
[361056801,1747222246177,-400.0,0.00010988,2]
[361056802,1747222246186,-400.0,0.00010988,2]
[361056803,1747222246195,-400.0,0.00010988,2]
[361056804,1747222246205,-436.26,0.00010988,2]
[361056805,1747222246214,-400.0,0.00010988,2]
[361056806,1747222246288,-660.98,0.00010988,2]
[361056807,1747222246297,-400.0,0.00010988,2]
[361056808,1747222246307,-611.98,0.00010988,2]
[361056809,1747222246316,-400.0,0.00010988,2]
[361056810,1747222246325,-400.0,0.00010988,2]
[361056811,1747222246334,-529.66,0.00010988,2]
[361056812,1747222246344,-755.24,0.00010988,2]
[361056813,1747222246353,-400.0,0.00010988,2]
[361056814,1747222246363,-962.2,0.00010988,2]
[361056815,1747222246372,-400.0,0.00010988,2]
[361056816,1747222246383,-485.4,0.00010988,2]
[361056817,1747222246392,-400.0,0.00010988,2]
[361056818,1747222246401,-400.0,0.00010988,2]
[361056819,1747222246411,-684.99,0.00010988,2]
[361056820,1747222246421,-1872.0,0.00010988,2]
[361056821,1747222246431,-400.0,0.00010988,2]
[361056822,1747222246440,-947.38,0.00010988,2]
[361056823,1747222246449,-400.0,0.00010988,2]
[361056824,1747222246459,-2271.56,0.00010988,2]
[361056825,1747222246467,-400.0,0.00010988,2]
[361056826,1747222246477,-400.0,0.00010988,2]
[361056827,1747222246486,-400.0,0.00010988,2]
[361056828,1747222246495,-400.0,0.00010988,2]
[361056829,1747222246504,-1129.6,0.00010988,2]
[361056830,1747222246513,-1143.38,0.00010988,2]
[361056831,1747222246526,-826.87,0.00010988,2]
[361056832,1747222246535,-531.9,0.00010988,2]
[361056833,1747222246544,-2976.58,0.00010988,2]
[361056834,1747222246553,-377.52815703,0.00010988,2]
[361056835,1747222246563,-400.0,0.00010988,2]
[361056836,1747222246572,-457.63,0.00010988,2]
[361056837,1747222246582,-699.2,0.00010988,2]
[361056838,1747222246593,-400.0,0.00010988,2]
[361056839,1747222246603,-400.0,0.00010988,2]
[361056840,1747222246612,-400.0,0.00010988,2]
[361056841,1747222246621,-460.62,0.00010988,2]
[361056842,1747222246630,-423.47,0.00010988,2]
[361056843,1747222246640,-936.5,0.00010988,2]
[361056844,1747222246649,-400.0,0.00010988,2]
[361056845,1747222246658,-400.0,0.00010988,2]
[361056846,1747222246668,-400.0,0.00010988,2]
[361056847,1747222246678,-947.19,0.00010988,2]
[361056848,1747222246687,-400.0,0.00010988,2]
[361056849,1747222246696,-643.67,0.00010988,2]
[361056850,1747222246707,-400.0,0.00010988,2]
[361056851,1747222246717,-1012.67,0.00010988,2]
[361056852,1747222246726,-400.0,0.00010988,2]
[361056853,1747222246735,-722.16,0.00010988,2]
[361056854,1747222246744,-580.86,0.00010988,2]
[361056855,1747222246754,-946.95,0.00010988,2]
[361056856,1747222246764,-913.79,0.00010988,2]
[361056857,1747222246774,-1112.89,0.00010988,2]
[361056858,1747222246783,-2072.41,0.00010988,2]
[361056859,1747222246792,-911.9,0.00010988,2]
[361056860,1747222246802,-939.37,0.00010988,2]
[361056861,1747222246811,-488.76,0.00010988,2]
[361056862,1747222246821,-909.24,0.00010988,2]
[361056863,1747222246830,-481.78,0.00010988,2]
[361056864,1747222246839,-400.0,0.00010988,2]
[361056865,1747222246849,-400.0,0.00010988,2]
[361056866,1747222246859,-400.0,0.00010988,2]
[361056867,1747222246868,-790.29,0.00010988,2]
[361056868,1747222246878,-1572.28,0.00010988,2]
[361056869,1747222246887,-1903.55,0.00010988,2]
[361056870,1747222246897,-400.0,0.00010988,2]
[361056871,1747222246907,-400.0,0.00010988,2]
[361056872,1747222246916,-315.03655229,0.00010988,2]
[361056873,1747222246925,-1021.6,0.00010988,2]
[361056874,1747222246935,-400.0,0.00010988,2]
[361056875,1747222246945,-400.0,0.00010988,2]
[361056876,1747222246954,-400.0,0.00010988,2]
[361056877,1747222246963,-400.0,0.00010988,2]
[361056878,1747222246973,-400.0,0.00010988,2]
[361056879,1747222246983,-581.02871796,0.0001099,2]
[361056880,1747222246992,-1989.431,0.00010998,2]
[361056881,1747222247003,-1000.0,0.00010999,2]
[361056882,1747222247013,-250.18007473,0.00010999,2]
[361056883,1747222247024,-734271.40445597,0.00011,2]
[361056884,1747222247033,-607055.78932563,0.00011,2]
[361056885,1747222247043,-1455287.65577804,0.00011,2]
[361056886,1747222247536,-1098.32903421,0.00010986,2]
[361056887,1747222247558,-369.98096579,0.00010986,2]
[361056888,1747222247568,-400.0,0.00010987,2]
[361056889,1747222247578,-461.66811768,0.00011,2]
[361056890,1747222248713,-400.0,0.00010986,2]
[361056891,1747222248723,-400.0,0.00010986,2]
[361056892,1747222248734,-287.56460265,0.00010986,2]
[361056893,1747222248886,-112.43539735,0.00010986,2]
[361056894,1747222248897,-400.0,0.00010987,2]
[361056895,1747222248907,-400.0,0.00010987,2]
[361056896,1747222248918,-400.0,0.00010987,2]
[361056897,1747222248928,-400.0,0.00010987,2]
[361056898,1747222248938,-9756.95719967,0.00011,2]
[361056899,1747222248950,-1303.99998,0.00011,2]
[361056900,1747222249025,-220029.13102556,0.00011,2]
[361056901,1747222249035,-151.0,0.00011,2]
[361056902,1747222249046,-151.0,0.00011,2]
[361056903,1747222249056,-151.0,0.00011,2]
[361056904,1747222249066,-188.722796,0.00011,2]
[361056905,1747222249076,-250.0,0.00011,2]
[361056906,1747222249086,-250.0,0.00011,2]
[361056907,1747222249097,-4117.28261424,0.00011099,2]
[361056908,1747222249107,-4117.28261416,0.00011099,2]
[361056909,1747222249117,-2749.87491812,0.00011099,2]
[361056910,1747222249127,-2749.87491812,0.00011099,2]
[361056911,1747222249137,-174.29073932,0.00011161,2]
[361056912,1747222249147,-571.88377251,0.00011161,2]
[361056913,1747222249157,-199.01807657,0.00011161,2]
[361056914,1747222249166,-4668.47677318,0.00011161,2]
[361056915,1747222249176,-1000.0,0.000112,2]
[361056916,1747222249186,-1322.0,0.000112,2]
[361056917,1747222249197,-1880.0,0.000112,2]
[361056918,1747222249207,-3490.1545997,0.00011205,2]
[361056919,1747222249217,-4000.0,0.00011233,2]
[361056920,1747222249228,-581.02871796,0.00011252,2]
[361056921,1747222249238,-4117.28261416,0.00011253,2]
[361056922,1747222249248,-2749.87491812,0.00011253,2]
[361056923,1747222249258,-1343.75,0.00011255,2]
[361056924,1747222249267,-7735.7221236,0.00011256,2]
[361056925,1747222249277,-6544.8559559,0.00011256,2]
[361056926,1747222249287,-2709.9189038,0.00011256,2]
[361056927,1747222249297,-125918.2192642,0.00011256,2]
[361056928,1747222249307,-118.59987853,0.0001126,2]
[361056929,1747222250043,-400.0,0.00010986,2]
[361056930,1747222250053,-400.0,0.00010986,2]
[361056931,1747222250063,-400.0,0.00010987,2]
[361056932,1747222250073,-400.0,0.00010987,2]
[361056933,1747222250082,-400.0,0.00010987,2]
[361056934,1747222250092,-203.34381,0.00011,2]
[361056935,1747222250102,-1178.0,0.000111,2]
[361056936,1747222250111,-694.05512047,0.0001126,2]
[361056937,1747222250121,-1000.0,0.0001126,2]
[361056938,1747222250131,-624.67,0.0001126,2]
[361056939,1747222250141,-827.17,0.0001126,2]
[361056940,1747222250151,-1296.55192857,0.0001126,2]
[361056941,1747222250163,-3242.59477743,0.0001126,2]
[361056942,1747222250173,-275.881298,0.0001126,2]
[361056943,1747222250183,-1129.53,0.0001126,2]
[361056944,1747222250193,-468.85,0.0001126,2]
[361056945,1747222250202,-92.20462527,0.0001126,2]
[361056946,1747222250218,-744.80123688,0.0001126,2]
[361056947,1747222250262,-111.28413785,0.0001126,2]
[361056948,1747222250272,-400.0,0.0001126,2]
[361056949,1747222250282,-11.26586215,0.0001126,2]
[361056950,1747222250294,-388.73413785,0.0001126,2]
[361056951,1747222250303,-400.0,0.0001126,2]
[361056952,1747222250313,-1702.88,0.0001126,2]
[361056953,1747222250323,-3963.41,0.0001126,2]
[361056954,1747222250332,-2199.43,0.0001126,2]
[361056955,1747222250342,-279.0786586,0.0001126,2]
[361056956,1747222274027,150.0,9.95e-05,7]
[361056958,1747222405649,542.9,8.219e-05,2]
[361056959,1747223027936,1000.0,0.0002,30]
[361056960,1747223028194,1000.0,0.0002,30]
[361056961,1747223028914,1000.0,0.0002,30]
[361056962,1747223028981,1000.0,0.0002,30]
[361056963,1747223029500,1000.0,0.0002,30]
[361056989,1747223432240,-641.30455956,9.956e-05,2]
[361056990,1747223432294,-190.19776044,9.956e-05,2]
[361056991,1747223432303,-165.75,0.00010007,2]
[361056992,1747223432313,-190.7,0.00010007,2]
[361056993,1747223432324,-106.86223956,0.00010026,2]
[361056994,1747223432348,-206.55776044,0.00010026,2]
[361056995,1747223432357,-92.30223956,0.00010111,2]
[361056996,1747223432369,-907.69776044,0.00010111,2]
[361056997,1747223432378,-259.18,0.00010114,2]
[361056998,1747223432387,-300.0,0.00010159,2]
[361056999,1747223432396,-1009.93086724,0.00010159,2]
[361057000,1747223432407,-190.06913276,0.00010159,2]
[361057001,1747223432416,-300.0,0.00010159,2]
[361057002,1747223432425,-10674.01,0.0001016,2]
[361057003,1747223432434,-310.71,0.00010168,2]
[361057004,1747223432443,-250.0,0.00010242,2]
[361057005,1747223432452,-164.45,0.00010258,2]
[361057006,1747223432462,-566.58,0.00010283,2]
[361057007,1747223432474,-542.9,0.00010473,2]
[361057008,1747223432484,-500.0,0.00010884,2]
[361057009,1747223432494,-500.0,0.00010884,2]
[361057010,1747223432503,-196.32280306,0.00010884,2]
[361057011,1747223432513,-500.0,0.00010884,2]
[361057012,1747223432522,-500.0,0.00010884,2]
[361057013,1747223432532,-596.06662415,0.00010885,2]
[361057014,1747223432542,-250.0,0.000109,2]
[361057015,1747223432552,-250.0,0.00010946,2]
[361057016,1747223432562,-866.832,0.00010958,2]
[361057017,1747223432571,-866.832,0.00010958,2]
[361057018,1747223432581,-207.4,0.00010966,2]
[361057019,1747223432591,-150.0,0.00010972,2]
[361057020,1747223432601,-8137.47828422,0.00010973,2]
[361057024,1747223432636,-1862.51171578,0.00010973,2]
[361057026,1747223432646,-999.99,0.00010973,2]
[361057028,1747223432655,-1094.17,0.00010973,2]
[361057030,1747223432664,-1407.31,0.00010973,2]
[361057031,1747223432673,-1781.83,0.00010973,2]
[361057033,1747223432683,-9999.99,0.00010973,2]
[361057035,1747223432692,-150.99,0.00010973,2]
[361057037,1747223432702,-150.99,0.00010973,2]
[361057039,1747223432711,-193.28927934,0.00010973,2]
[361057040,1747223432720,-340.16328176,0.00010973,2]
[361057042,1747223432730,-500.0,0.00010973,2]
[361057043,1747223432740,-160.42158436,0.00010973,2]
[361057044,1747223432749,-500.0,0.00010973,2]
[361057045,1747223432760,-500.0,0.00010973,2]
[361057046,1747223432769,-500.0,0.00010973,2]
[361057047,1747223432779,-500.0,0.00010973,2]
[361057048,1747223432789,-226.03686051,0.00010978,2]
[361057049,1747223432798,-2000.0,0.00010979,2]
[361057050,1747223432809,-2000.0,0.00010979,2]
[361057051,1747223432820,-151.0,0.00010979,2]
[361057052,1747223432836,-2000.0,0.00010979,2]
[361057053,1747223432845,-2000.0,0.00010979,2]
[361057054,1747223432855,-2000.0,0.00010979,2]
[361057055,1747223432867,-2000.0,0.00010979,2]
[361057056,1747223432876,-551.63474627,0.00010979,2]
[361057057,1747223432886,-2000.0,0.00010979,2]
[361057058,1747223432895,-2000.0,0.00010979,2]
[361057059,1747223432905,-2000.0,0.00010979,2]
[361057060,1747223432916,-668.65185757,0.00010979,2]
[361057061,1747223432925,-2000.0,0.00010979,2]
[361057062,1747223432936,-2000.0,0.00010979,2]
[361057063,1747223432949,-2000.0,0.00010979,2]
[361057064,1747223432959,-2000.0,0.00010979,2]
[361057065,1747223432970,-2000.0,0.00010979,2]
[361057066,1747223432979,-2000.0,0.00010979,2]
[361057067,1747223432990,-2000.0,0.00010979,2]
[361057068,1747223433000,-2000.0,0.00010979,2]
[361057069,1747223433009,-2000.0,0.00010979,2]
[361057070,1747223433019,-2000.0,0.00010979,2]
[361057071,1747223433028,-2000.0,0.00010979,2]
[361057072,1747223433038,-400.0,0.00010984,2]
[361057073,1747223433048,-400.0,0.00010984,2]
[361057074,1747223433057,-400.0,0.00010984,2]
[361057075,1747223433067,-400.0,0.00010984,2]
[361057076,1747223433077,-913.16,0.00010984,2]
[361057077,1747223433087,-400.0,0.00010984,2]
[361057078,1747223433097,-497.5,0.00010984,2]
[361057079,1747223433107,-546.78,0.00010984,2]
[361057080,1747223433116,-400.0,0.00010984,2]
[361057081,1747223433127,-1019.9,0.00010984,2]
[361057082,1747223433137,-824.74,0.00010984,2]
[361057083,1747223433147,-447.93919005,0.00010984,2]
[361057084,1747223433156,-400.0,0.00010984,2]
[361057085,1747223433166,-252.16688645,0.00010984,2]
[361057086,1747223433176,-400.0,0.00010984,2]
[361057087,1747223433186,-497.69,0.00010984,2]
[361057088,1747223433195,-400.0,0.00010984,2]
[361057089,1747223433205,-400.0,0.00010984,2]
[361057090,1747223433215,-2035.11,0.00010984,2]
[361057091,1747223433225,-419.67745531,0.00010984,2]
[361057092,1747223433235,-400.0,0.00010984,2]
[361057093,1747223433245,-400.0,0.00010984,2]
[361057094,1747223433255,-400.0,0.00010984,2]
[361057095,1747223433264,-481.7,0.00010984,2]
[361057096,1747223433274,-4129.38,0.00010984,2]
[361057097,1747223433284,-400.0,0.00010984,2]
[361057098,1747223433294,-400.0,0.00010984,2]
[361057099,1747223433304,-401.52198112,0.00010984,2]
[361057100,1747223433315,-400.0,0.00010984,2]
[361057101,1747223433325,-457.58,0.00010984,2]
[361057102,1747223433335,-400.0,0.00010984,2]
[361057103,1747223433346,-400.0,0.00010984,2]
[361057104,1747223433357,-400.0,0.00010984,2]
[361057105,1747223433366,-400.0,0.00010984,2]
[361057106,1747223433377,-400.0,0.00010984,2]
[361057107,1747223433387,-1301.17,0.00010984,2]
[361057108,1747223433397,-400.0,0.00010984,2]
[361057109,1747223433407,-10462.85,0.00010984,2]
[361057110,1747223433417,-400.0,0.00010984,2]
[361057111,1747223433427,-400.0,0.00010984,2]
[361057112,1747223433436,-1470.49,0.00010984,2]
[361057113,1747223433446,-400.0,0.00010984,2]
[361057114,1747223433455,-400.0,0.00010984,2]
[361057115,1747223433464,-3399.31,0.00010984,2]
[361057116,1747223433474,-400.0,0.00010984,2]
[361057117,1747223433484,-400.0,0.00010984,2]
[361057118,1747223433496,-415.17863472,0.00010984,2]
[361057119,1747223433505,-400.0,0.00010984,2]
[361057120,1747223433516,-272.85244818,0.00010984,2]
[361057121,1747223433554,-127.14755182,0.00010984,2]
[361057122,1747223433564,-400.0,0.00010984,2]
[361057123,1747223433574,-400.0,0.00010984,2]
[361057124,1747223433585,-400.0,0.00010984,2]
[361057125,1747223433595,-400.0,0.00010984,2]
[361057126,1747223433604,-621.38,0.00010984,2]
[361057127,1747223433615,-1620.8,0.00010984,2]
[361057128,1747223433625,-243.95048128,0.00010984,2]
[361057129,1747223433696,-156.04951872,0.00010984,2]
[361057130,1747223433988,-206.73276017,0.00010984,2]
[361057131,1747223434000,-1064.77,0.00010984,2]
[361057132,1747223434010,-400.0,0.00010984,2]
[361057133,1747223434019,-546.11,0.00010984,2]
[361057134,1747223434028,-400.0,0.00010984,2]
[361057135,1747223434037,-400.0,0.00010984,2]
[361057136,1747223434047,-1734.6,0.00010984,2]
[361057137,1747223434056,-400.0,0.00010984,2]
[361057138,1747223434066,-400.0,0.00010984,2]
[361057139,1747223434076,-400.0,0.00010984,2]
[361057140,1747223434086,-400.0,0.00010984,2]
[361057141,1747223434096,-2512.43,0.00010984,2]
[361057142,1747223434106,-976.99,0.00010984,2]
[361057143,1747223434115,-439.39,0.00010984,2]
[361057144,1747223434125,-4272.138076,0.00010985,2]
[361057145,1747223434135,-259.652987,0.00010985,2]
[361057146,1747223434144,-400.0,0.00010985,2]
[361057147,1747223434154,-904.01,0.00010985,2]
[361057148,1747223434164,-400.0,0.00010985,2]
[361057149,1747223434173,-400.0,0.00010985,2]
[361057150,1747223434183,-690.81,0.00010985,2]
[361057151,1747223434192,-394.67280322,0.00010985,2]
[361057152,1747223434203,-1073.58,0.00010985,2]
[361057153,1747223434213,-413.25,0.00010985,2]
[361057154,1747223434222,-400.0,0.00010985,2]
[361057155,1747223434232,-400.0,0.00010985,2]
[361057156,1747223434242,-779.41,0.00010985,2]
[361057157,1747223434252,-1662.69,0.00010985,2]
[361057158,1747223434262,-493.75,0.00010985,2]
[361057159,1747223434271,-695.69,0.00010985,2]
[361057160,1747223434281,-520.51,0.00010985,2]
[361057161,1747223434291,-926.53,0.00010985,2]
[361057162,1747223434301,-858.42,0.00010985,2]
[361057163,1747223434311,-400.0,0.00010985,2]
[361057164,1747223434321,-415.89,0.00010985,2]
[361057165,1747223434331,-400.0,0.00010985,2]
[361057166,1747223434341,-400.0,0.00010985,2]
[361057167,1747223434350,-400.0,0.00010985,2]
[361057168,1747223434360,-400.0,0.00010985,2]
[361057169,1747223434371,-400.0,0.00010985,2]
[361057170,1747223434381,-487.15,0.00010985,2]
[361057171,1747223434391,-723.51,0.00010985,2]
[361057172,1747223434401,-400.0,0.00010985,2]
[361057173,1747223434411,-400.0,0.00010985,2]
[361057174,1747223434421,-400.0,0.00010985,2]
[361057175,1747223434430,-400.0,0.00010985,2]
[361057176,1747223434440,-400.0,0.00010985,2]
[361057177,1747223434451,-490.0,0.00010985,2]
[361057178,1747223434460,-400.0,0.00010985,2]
[361057179,1747223434470,-400.0,0.00010985,2]
[361057180,1747223434480,-400.0,0.00010985,2]
[361057181,1747223434489,-1878.51,0.00010985,2]
[361057182,1747223434501,-400.0,0.00010985,2]
[361057183,1747223434512,-400.0,0.00010985,2]
[361057184,1747223434522,-400.0,0.00010985,2]
[361057185,1747223434531,-400.0,0.00010985,2]
[361057186,1747223434541,-1012.04,0.00010985,2]
[361057187,1747223434550,-438.42,0.00010985,2]
[361057188,1747223434560,-400.0,0.00010985,2]
[361057189,1747223434570,-497.66,0.00010985,2]
[361057190,1747223434580,-567.46,0.00010985,2]
[361057191,1747223434589,-400.0,0.00010985,2]
[361057192,1747223434598,-400.0,0.00010985,2]
[361057193,1747223434608,-400.0,0.00010985,2]
[361057194,1747223434618,-400.0,0.00010985,2]
[361057195,1747223434627,-400.0,0.00010985,2]
[361057196,1747223434637,-400.0,0.00010985,2]
[361057197,1747223434646,-400.0,0.00010985,2]
[361057198,1747223434656,-577.79,0.00010985,2]
[361057199,1747223434666,-660.7,0.00010985,2]
[361057200,1747223434675,-866.82,0.00010985,2]
[361057201,1747223434685,-400.0,0.00010985,2]
[361057202,1747223434694,-400.0,0.00010985,2]
[361057203,1747223434704,-490.68,0.00010985,2]
[361057204,1747223434714,-419.19,0.00010985,2]
[361057205,1747223434724,-400.0,0.00010985,2]
[361057206,1747223434734,-400.0,0.00010985,2]
[361057207,1747223434744,-400.0,0.00010985,2]
[361057208,1747223434754,-400.0,0.00010985,2]
[361057209,1747223434763,-400.0,0.00010985,2]
[361057210,1747223434773,-400.0,0.00010985,2]
[361057211,1747223434783,-400.0,0.00010985,2]
[361057212,1747223434793,-400.0,0.00010985,2]
[361057213,1747223434803,-1220.35,0.00010985,2]
[361057214,1747223434814,-534.07,0.00010985,2]
[361057215,1747223434825,-624.52,0.00010985,2]
[361057216,1747223434839,-400.0,0.00010985,2]
[361057217,1747223434849,-440.12,0.00010985,2]
[361057218,1747223434859,-516.85508523,0.00010985,2]
[361057219,1747223434870,-400.0,0.00010985,2]
[361057220,1747223434881,-400.0,0.00010985,2]
[361057221,1747223434891,-400.0,0.00010985,2]
[361057222,1747223434901,-672.13,0.00010985,2]
[361057223,1747223434913,-400.0,0.00010985,2]
[361057224,1747223434923,-1143.1,0.00010985,2]
[361057225,1747223434933,-400.0,0.00010985,2]
[361057226,1747223434943,-400.0,0.00010985,2]
[361057227,1747223434952,-237.87447758,0.00010985,2]
[361057228,1747223434961,-400.0,0.00010985,2]
[361057229,1747223434971,-400.0,0.00010985,2]
[361057230,1747223434980,-400.0,0.00010985,2]
[361057231,1747223434990,-400.0,0.00010985,2]
[361057232,1747223435001,-1008.58,0.00010985,2]
[361057233,1747223435010,-400.0,0.00010985,2]
[361057234,1747223435020,-400.0,0.00010985,2]
[361057235,1747223435029,-826.91,0.00010985,2]
[361057236,1747223435039,-412.31,0.00010985,2]
[361057237,1747223435049,-424.95,0.00010985,2]
[361057238,1747223435058,-400.0,0.00010985,2]
[361057239,1747223435068,-668.19,0.00010985,2]
[361057240,1747223435077,-591.7,0.00010985,2]
[361057241,1747223435087,-5005.15,0.00010985,2]
[361057242,1747223435096,-400.0,0.00010985,2]
[361057243,1747223435106,-400.0,0.00010985,2]